fUSD/lending_fUSD_20241210
["ID","MTS","AMOUNT","RATE_DAILY","PERIOD"]
[344795699,1733789527541,-500.0,0.00018355,2]
[344795700,1733789527552,-82008.36,0.00018356,2]
[344795701,1733789527563,-500.0,0.00018366,2]
[344795702,1733789527574,-500.0,0.00018366,2]
[344795703,1733789527586,-500.0,0.00018366,2]
[344795704,1733789527599,-500.0,0.00018366,2]
[344795705,1733789527611,-500.0,0.00018366,2]
[344795706,1733789527622,-500.0,0.00018366,2]
[344795707,1733789527634,-500.0,0.00018366,2]
[344795708,1733789527645,-500.0,0.00018366,2]
[344795709,1733789527656,-500.0,0.00018366,2]
[344795710,1733789527668,-500.0,0.00018366,2]
[344795711,1733789527680,-500.0,0.00018366,2]
[344795712,1733789527936,-500.0,0.00018366,2]
[344795713,1733789527948,-10274.88,0.00018366,2]
[344795714,1733789527959,-746.8,0.00018366,2]
[344795715,1733789527970,-797.0,0.00018367,2]
[344795716,1733789527981,-564.0,0.00018367,2]
[344795717,1733789527992,-1262.0,0.00018367,2]
[344795718,1733789528012,-2005.0,0.00018367,2]
[344795719,1733789528022,-631.0,0.00018367,2]
[344795720,1733789528033,-206.016,0.00018367,2]
[344795721,1733789528043,-356.90690016,0.00018493,2]
[344795722,1733789528054,-4416.0,0.0001863,5]
[344795723,1733789528065,-1000.0,0.0001866,2]
[344795724,1733789528075,-1600.0,0.00018832,2]
[344795725,1733789528086,-600.0,0.00019,2]
[344795726,1733789528096,-1913.86,0.00019178,2]
[344795727,1733789528107,-1913.86,0.00019178,2]
[344795728,1733789528117,-1913.86,0.00019178,2]
[344795729,1733789528126,-1913.86,0.00019178,2]
[344795730,1733789528135,-1913.86,0.00019178,2]
[344795731,1733789528145,-1913.86,0.00019178,2]
[344795732,1733789528156,-1913.86,0.00019178,2]
[344795733,1733789528165,-1913.86,0.00019178,2]
[344795734,1733789528175,-1913.86,0.00019178,2]
[344795735,1733789528185,-1913.86,0.00019178,2]
[344795736,1733789528194,-1913.86,0.00019178,2]
[344795737,1733789528205,-1913.86,0.00019178,2]
[344795738,1733789528214,-1913.86,0.00019178,2]
[344795739,1733789528224,-1913.86,0.00019178,2]
[344795740,1733789528234,-1913.86,0.00019178,2]
[344795741,1733789528246,-1913.86,0.00019178,2]
[344795742,1733789528258,-1913.86,0.00019178,2]
[344795743,1733789528268,-1913.86,0.00019178,2]
[344795744,1733789528280,-1913.86,0.00019178,2]
[344795745,1733789528291,-1913.86,0.00019178,2]
[344795746,1733789528301,-1913.86,0.00019178,2]
[344795747,1733789528310,-1913.86,0.00019178,2]
[344795748,1733789528319,-1913.86,0.00019178,2]
[344795749,1733789528329,-1914.05131268,0.00019178,2]
[344795750,1733789528338,-3000.0,0.00019178,2]
[344795751,1733789528348,-3000.0,0.00019178,2]
[344795752,1733789528359,-3000.0,0.00019178,2]
[344795753,1733789528368,-3008.02819888,0.00019178,2]
[344795754,1733789528378,-3674.0,0.00019178,5]
[344795755,1733789528387,-3212.43,0.00019178,2]
[344795756,1733789528396,-4000.0,0.00019178,2]
[344795757,1733789528406,-1404.15,0.00019242,30]
[344795758,1733789528415,-23497.99,0.0001927,2]
[344795759,1733789528425,-1600.0,0.00019481,2]
[344795760,1733789528435,-1019.65,0.00019864,2]
[344795761,1733789528444,-158.0,0.0002,2]
[344795762,1733789528454,-158.0,0.0002,2]
[344795763,1733789528463,-296.95,0.00020091,2]
[344795764,1733789528473,-1600.0,0.00020129,2]
[344795765,1733789528483,-500.0,0.00020336,2]
[344795766,1733789528493,-1000.0,0.00020356,2]
[344795767,1733789528511,-5963.16,0.000208,7]
[344795768,1733789528521,-1125.8651412,0.00020942,2]
[344795769,1733789528531,-650.0,0.00021,2]
[344795770,1733789528541,-3000.0,0.00021,2]
[344795771,1733789528551,-230.0,0.000212,2]
[344795772,1733789528561,-364.0,0.000212,2]
[344795773,1733789528571,-150.0,0.00021257,2]
[344795774,1733789528581,-7703.809,0.00021257,2]
[344795775,1733789528591,-5421.584,0.00021257,2]
[344795776,1733789528601,-1167.0,0.00021257,2]
[344795777,1733789528612,-1098.0,0.00021257,2]
[344795778,1733789528622,-1262.0,0.00021367,2]
[344795779,1733789528632,-2005.0,0.00021367,2]
[344795780,1733789528642,-631.0,0.00021367,2]
[344795781,1733789528652,-1020.24861196,0.0002156,2]
[344795782,1733789528663,-1138.43345559,0.0002156,2]
[344795783,1733789528673,-305.5489,0.00021633,15]
[344795784,1733789528683,-1404.15,0.00021826,30]
[344795785,1733789528694,-4355.95,0.00021898,2]
[344795786,1733789528705,-500.0,0.00021898,2]
[344795787,1733789528715,-358.14,0.00021899,2]
[344795788,1733789528725,-500.0,0.00021899,2]
[344795789,1733789528736,-294.44,0.00021899,2]
[344795790,1733789528750,-500.0,0.00021899,2]
[344795791,1733789528761,-493.14,0.00021899,2]
[344795792,1733789528771,-500.0,0.00021899,2]
[344795793,1733789528781,-500.0,0.00021899,2]
[344795794,1733789528791,-379.07,0.00021899,2]
[344795795,1733789528801,-500.0,0.00021899,2]
[344795796,1733789528810,-500.0,0.00021899,2]
[344795797,1733789528819,-500.0,0.00021899,2]
[344795798,1733789528828,-500.0,0.00021899,2]
[344795799,1733789528838,-500.0,0.00021899,2]
[344795800,1733789528848,-500.0,0.00021899,2]
[344795801,1733789528857,-500.0,0.00021899,2]
[344795802,1733789528866,-500.0,0.00021899,2]
[344795803,1733789528875,-500.0,0.00021899,2]
[344795804,1733789528885,-500.0,0.00021899,2]
[344795805,1733789528895,-500.0,0.00021899,2]
[344795806,1733789528904,-634.32,0.00021899,2]
[344795807,1733789528914,-500.0,0.00021899,2]
[344795808,1733789528923,-500.0,0.00021899,2]
[344795809,1733789528932,-500.0,0.00021899,2]
[344795810,1733789528942,-583.25,0.00021899,2]
[344795811,1733789528951,-500.0,0.00021899,2]
[344795812,1733789528961,-500.0,0.00021899,2]
[344795813,1733789528970,-500.0,0.00021899,2]
[344795814,1733789528979,-500.0,0.00021899,2]
[344795815,1733789528989,-500.0,0.00021899,2]
[344795816,1733789529007,-500.0,0.00021899,2]
[344795817,1733789529016,-500.0,0.00021899,2]
[344795818,1733789529027,-500.0,0.00021899,2]
[344795819,1733789529038,-641.54,0.00021899,2]
[344795820,1733789529049,-500.0,0.00021899,2]
[344795821,1733789529058,-500.0,0.00021899,2]
[344795822,1733789529068,-207.41,0.00021899,2]
[344795823,1733789529077,-500.0,0.00021899,2]
[344795824,1733789529086,-500.0,0.00021899,2]
[344795825,1733789529096,-579.73,0.00021899,2]
[344795826,1733789529106,-500.0,0.00021899,2]
[344795827,1733789529115,-500.0,0.00021899,2]
[344795828,1733789529125,-500.0,0.00021899,2]
[344795829,1733789529135,-214.05,0.00021899,2]
[344795830,1733789529144,-500.0,0.00021899,2]
[344795831,1733789529154,-189.69,0.00021899,2]
[344795832,1733789529163,-500.0,0.00021899,2]
[344795833,1733789529173,-237.58,0.00021899,2]
[344795834,1733789529183,-500.0,0.00021899,2]
[344795835,1733789529192,-500.0,0.00021899,2]
[344795836,1733789529202,-500.0,0.00021899,2]
[344795837,1733789529212,-500.0,0.00021899,2]
[344795838,1733789529222,-500.0,0.00021899,2]
[344795839,1733789529231,-500.0,0.00021899,2]
[344795840,1733789529240,-500.0,0.00021899,2]
[344795841,1733789529256,-500.0,0.00021899,2]
[344795842,1733789529266,-500.0,0.00021899,2]
[344795843,1733789529275,-1000.0,0.00021899,2]
[344795844,1733789529285,-500.0,0.00021899,2]
[344795845,1733789529295,-500.0,0.00021899,2]
[344795846,1733789529304,-500.0,0.00021899,2]
[344795847,1733789529314,-1941.05,0.00021899,2]
[344795848,1733789529323,-709.06,0.00021899,2]
[344795849,1733789529332,-500.0,0.00021899,2]
[344795850,1733789529342,-500.0,0.00021899,2]
[344795851,1733789529352,-944.73,0.00021899,2]
[344795852,1733789529361,-500.0,0.00021899,2]
[344795853,1733789529371,-500.0,0.00021899,2]
[344795854,1733789529380,-500.0,0.00021899,2]
[344795855,1733789529390,-648.21,0.00021899,2]
[344795856,1733789529399,-200.0,0.000219,2]
[344795857,1733789529408,-659.89050447,0.00021917,2]
[344795858,1733789529422,-340.10949553,0.00021917,2]
[344795859,1733789529434,-206.16550537,0.00021917,2]
[344795860,1733789529449,-308.61663562,0.00021917,2]
[344795861,1733789529458,-600.0,0.00021917,2]
[344795862,1733789529468,-66.72862778,0.00021917,2]
[344795863,1733789529479,-358.48914,0.00021917,2]
[344795864,1733789529496,-174.78223222,0.00021917,2]
[344795865,1733789529508,-600.0,0.00021917,2]
[344795866,1733789529518,-600.0,0.00021917,2]
[344795867,1733789529528,-600.0,0.00021917,2]
[344795868,1733789529538,-600.0,0.00021917,2]
[344795869,1733789529549,-600.0,0.00021917,2]
[344795870,1733789529560,-600.0,0.00021917,2]
[344795871,1733789529570,-310.32537071,0.00021917,2]
[344795872,1733789529581,-279.19242707,0.00021917,2]
[344795873,1733789529594,-720.80757293,0.00021917,2]
[344795874,1733789529605,-1000.0,0.00021917,2]
[344795875,1733789529616,-491.29676173,0.00021917,2]
[344795878,1733789689101,600.22665638,0.00022,120]
[344795879,1733789725013,688.0,0.00021999,120]
[344795880,1733790308807,1843952.52808271,0.0001,2]
[344795886,1733790404559,7177.42,0.0001,10]
[344795893,1733790518914,-1000.0,7e-05,2]
[344795894,1733790518949,-28000.0,8e-05,2]
[344795895,1733790518985,-10075.60132748,9e-05,2]
[344795896,1733790519022,-158503.85567443,9e-05,2]
[344795897,1733790519057,-4495.3261993,9e-05,2]
[344795898,1733790519094,-150.0,9.107e-05,2]
[344795899,1733790519132,-600.0,9.2e-05,3]
[344795900,1733790519169,-1300.0,9.3e-05,3]
[344795901,1733790519205,-2000.0,9.4e-05,3]
[344795902,1733790519241,-1000.0,9.449e-05,2]
[344795903,1733790519276,-2700.0,9.5e-05,3]
[344795904,1733790519313,-3300.0,9.6e-05,3]
[344795905,1733790519355,-600.0,9.7e-05,3]
[344795906,1733790519393,-102210.53383149,9.8e-05,2]
[344795907,1733790519431,-600.0,9.8e-05,3]
[344795908,1733790519471,-600.0,9.9e-05,3]
[344795909,1733790519510,-7611.0,9.973e-05,2]
[344795910,1733790519547,-3311.49999887,9.99e-05,2]
[344795911,1733790519584,-391.54275846,9.999e-05,2]
[344795912,1733790519624,-20941947.67457272,0.0001,2]
[344795913,1733790519659,-6456.95716229,0.0001,2]
[344795914,1733790519696,-600.0,0.0001,3]
[344795915,1733790519730,-52897.07395923,0.0001,2]
[344795916,1733790519766,-22605.28552766,0.0001,2]
[344795917,1733790519803,-15580.61056632,0.0001,2]
[344795918,1733790519838,-534.11001026,0.0001,2]
[344795921,1733790523464,2606.72786638,0.0001,2]
[344795922,1733790526383,8015.23785104,0.0001,2]
[344795926,1733790529260,300.47686088,9e-05,3]
[344795927,1733790529834,3000.57844322,0.0001,2]
[344795931,1733790540199,-1000.0,0.00010631,2]
[344795932,1733790540307,-1011.8,0.00010957,2]
[344795933,1733790540347,-982.92,0.00010957,2]
[344795934,1733790540389,-981.57,0.00010957,2]
[344795935,1733790540427,-1014.47,0.00010957,2]
[344795936,1733790540464,-997.58,0.00010957,2]
[344795937,1733790540502,-994.13,0.00010957,2]
[344795938,1733790540537,-1013.68,0.00010957,2]
[344795939,1733790540570,-994.02,0.00010958,2]
[344795940,1733790540607,-984.37,0.00010958,2]
[344795941,1733790540641,-982.32,0.00010958,2]
[344795942,1733790540674,-1016.74,0.00010958,2]
[344795943,1733790540706,-1004.96,0.00010958,2]
[344795944,1733790540737,-1015.52,0.00010958,2]
[344795945,1733790540768,-995.86,0.00010958,2]
[344795946,1733790540800,-1000.24,0.00010958,2]
[344795947,1733790540835,-1019.88,0.00010958,2]
[344795948,1733790540869,-1014.28,0.00010958,2]
[344795949,1733790540904,-982.61,0.00010958,2]
[344795950,1733790540938,-997.47,0.00010958,2]
[344795951,1733790540973,-500.0,0.00010958,2]
[344795952,1733790541009,-500.0,0.00010958,2]
[344795953,1733790541043,-500.0,0.00010958,2]
[344795954,1733790541078,-500.0,0.00010958,2]
[344795955,1733790541111,-500.0,0.00010958,2]
[344795956,1733790541145,-500.0,0.00010958,2]
[344795957,1733790541184,-500.0,0.00010958,2]
[344795958,1733790541226,-500.0,0.00010958,2]
[344795959,1733790541264,-500.0,0.00010958,2]
[344795960,1733790541301,-490.59,0.00010958,2]
[344795961,1733790541339,-500.0,0.00010958,2]
[344795962,1733790541383,-500.0,0.00010958,2]
[344795963,1733790541422,-500.0,0.00010958,2]
[344795964,1733790541459,-500.0,0.00010958,2]
[344795965,1733790541494,-500.0,0.00010958,2]
[344795966,1733790541531,-500.0,0.00010958,2]
[344795967,1733790541564,-500.0,0.00010958,2]
[344795968,1733790541597,-500.0,0.00010958,2]
[344795969,1733790541633,-500.0,0.00010958,2]
[344795970,1733790541665,-500.0,0.00010958,2]
[344795971,1733790541697,-500.0,0.00010958,2]
[344795972,1733790541731,-500.0,0.00010958,2]
[344795973,1733790541764,-500.0,0.00010958,2]
[344795974,1733790541798,-500.0,0.00010958,2]
[344795975,1733790541834,-500.0,0.00010958,2]
[344795976,1733790541869,-647.88,0.00010958,2]
[344795977,1733790541908,-500.0,0.00010958,2]
[344795978,1733790541944,-500.0,0.00010958,2]
[344795979,1733790541980,-500.0,0.00010958,2]
[344795981,1733790542018,-500.0,0.00010958,2]
[344795982,1733790542056,-500.0,0.00010958,2]
[344795983,1733790542093,-500.0,0.00010958,2]
[344795984,1733790542130,-500.0,0.00010958,2]
[344795985,1733790542166,-500.0,0.00010958,2]
[344795986,1733790542203,-500.0,0.00010958,2]
[344795987,1733790542241,-500.0,0.00010958,2]
[344795988,1733790542281,-500.0,0.00010958,2]
[344795989,1733790542319,-578.98,0.00010958,2]
[344795991,1733790542361,-277.406272,0.00010958,2]
[344795994,1733790542402,-500.0,0.00010958,2]
[344795996,1733790542442,-500.0,0.00010958,2]
[344795998,1733790542480,-500.0,0.00010958,2]
[344795999,1733790542520,-500.0,0.00010958,2]
[344796000,1733790542559,-500.0,0.00010958,2]
[344796001,1733790542597,-500.0,0.00010958,2]
[344796002,1733790542638,-500.0,0.00010958,2]
[344796003,1733790542676,-500.0,0.00010958,2]
[344796004,1733790542713,-500.0,0.00010958,2]
[344796005,1733790542757,-500.0,0.00010958,2]
[344796006,1733790542796,-500.0,0.00010958,2]
[344796007,1733790542835,-500.0,0.00010958,2]
[344796008,1733790542873,-500.0,0.00010958,2]
[344796009,1733790542910,-500.0,0.00010958,2]
[344796010,1733790542948,-500.0,0.00010958,2]
[344796011,1733790542986,-512.83709606,0.00010958,2]
[344796012,1733790543027,-1012.9,0.00010958,2]
[344796013,1733790543069,-988.93,0.00010958,2]
[344796014,1733790543110,-992.2,0.00010958,2]
[344796015,1733790543150,-989.72,0.00010958,2]
[344796016,1733790543191,-1018.81,0.00010958,2]
[344796017,1733790543232,-1003.97,0.00010958,2]
[344796018,1733790543271,-1014.14,0.00010958,2]
[344796019,1733790543311,-992.15,0.00010958,2]
[344796020,1733790543358,-1016.46,0.00010958,2]
[344796021,1733790543399,-991.91,0.00010958,2]
[344796022,1733790543438,-998.61,0.00010958,2]
[344796023,1733790543478,-1016.64,0.00010958,2]
[344796024,1733790543517,-997.73,0.00010958,2]
[344796025,1733790543557,-199.0,0.00011068,2]
[344796026,1733790543595,-198.0,0.00011068,2]
[344796027,1733790543637,-1390204.60793353,0.00011088,2]
[344796028,1733790543679,-500.0,0.00011098,2]
[344796029,1733790543719,-500.0,0.00011098,2]
[344796030,1733790543760,-413.9,0.00011098,2]
[344796031,1733790543801,-500.0,0.00011098,2]
[344796032,1733790543841,-886.33,0.00011098,2]
[344796033,1733790543880,-1779.3,0.00011098,2]
[344796034,1733790543920,-500.0,0.00011098,2]
[344796035,1733790543959,-206.45,0.00011098,2]
[344796036,1733790543999,-318.40879537,0.00011098,2]
[344796037,1733790544038,-500.0,0.00011098,2]
[344796038,1733790544078,-612.2,0.00011098,2]
[344796039,1733790544119,-500.0,0.00011098,2]
[344796040,1733790544159,-244.6786067,0.00011098,2]
[344796041,1733790544199,-31940.5509753,0.00011099,2]
[344796042,1733790544240,-690456.19771101,0.000111,2]
[344796053,1733790590905,-150.0,8.048e-05,2]
[344796054,1733790590940,-300.0,0.00010956,2]
[344796055,1733790590974,-500.0,0.00010958,2]
[344796056,1733790591007,-500.0,0.00010958,2]
[344796057,1733790591040,-500.0,0.00010958,2]
[344796058,1733790591072,-320.86702542,0.00010958,2]
[344796059,1733790591104,-366.22,0.00010958,2]
[344796060,1733790591137,-1437.4,0.00010958,2]
[344796061,1733790591179,-1437.4,0.00010958,2]
[344796062,1733790591212,-1437.4,0.00010958,2]
[344796063,1733790591242,-1437.4,0.00010958,2]
[344796064,1733790591278,-1437.4,0.00010958,2]
[344796065,1733790591310,-1437.4,0.00010958,2]
[344796066,1733790591341,-1437.4,0.00010958,2]
[344796067,1733790591377,-1437.4,0.00010958,2]
[344796068,1733790591410,-1437.4,0.00010958,2]
[344796069,1733790591440,-1437.4,0.00010958,2]
[344796070,1733790591472,-1437.4,0.00010958,2]
[344796071,1733790591503,-1437.4,0.00010958,2]
[344796072,1733790591535,-1437.4,0.00010958,2]
[344796073,1733790591566,-1437.4,0.00010958,2]
[344796074,1733790591597,-1437.4,0.00010958,2]
[344796075,1733790591627,-1437.4,0.00010958,2]
[344796076,1733790591660,-1437.4,0.00010958,2]
[344796077,1733790591691,-1437.4,0.00010958,2]
[344796078,1733790591721,-1437.4,0.00010958,2]
[344796079,1733790591752,-500.0,0.00010958,2]
[344796080,1733790591782,-1437.4,0.00010958,2]
[344796081,1733790591815,-500.0,0.00010958,2]
[344796082,1733790591847,-1437.4,0.00010958,2]
[344796083,1733790591879,-1437.4,0.00010958,2]
[344796084,1733790591911,-500.0,0.00010958,2]
[344796085,1733790591942,-1437.4,0.00010958,2]
[344796086,1733790591973,-500.0,0.00010958,2]
[344796087,1733790592005,-1437.56365897,0.00010958,2]
[344796088,1733790592041,-500.0,0.00010958,2]
[344796089,1733790592076,-500.0,0.00010958,2]
[344796090,1733790592111,-500.0,0.00010958,2]
[344796091,1733790592148,-290.29,0.00010958,2]
[344796092,1733790592184,-608.96,0.00010958,2]
[344796093,1733790592218,-608.96,0.00010958,2]
[344796094,1733790592251,-608.96,0.00010958,2]
[344796095,1733790592284,-608.96,0.00010958,2]
[344796096,1733790592316,-608.96,0.00010958,2]
[344796097,1733790592349,-608.96,0.00010958,2]
[344796098,1733790592383,-608.96,0.00010958,2]
[344796099,1733790592420,-608.96,0.00010958,2]
[344796101,1733790592453,-608.96,0.00010958,2]
[344796103,1733790592488,-608.96,0.00010958,2]
[344796106,1733790592521,-608.96,0.00010958,2]
[344796108,1733790592554,-608.96,0.00010958,2]
[344796109,1733790592587,-608.96,0.00010958,2]
[344796110,1733790592619,-608.96,0.00010958,2]
[344796111,1733790592652,-608.96,0.00010958,2]
[344796112,1733790592683,-608.96,0.00010958,2]
[344796113,1733790592714,-608.96,0.00010958,2]
[344796114,1733790592745,-608.96,0.00010958,2]
[344796115,1733790592776,-608.96,0.00010958,2]
[344796116,1733790592808,-608.96,0.00010958,2]
[344796117,1733790592840,-608.96,0.00010958,2]
[344796118,1733790592872,-608.96,0.00010958,2]
[344796119,1733790592905,-608.96,0.00010958,2]
[344796120,1733790592941,-609.18263757,0.00010958,2]
[344796121,1733790592976,-500.0,0.00010958,2]
[344796122,1733790593011,-500.0,0.00010958,2]
[344796123,1733790593047,-500.0,0.00010958,2]
[344796124,1733790593081,-208.36,0.00010958,2]
[344796125,1733790593115,-978.64,0.00010958,2]
[344796126,1733790593150,-978.64,0.00010958,2]
[344796127,1733790593185,-978.64,0.00010958,2]
[344796128,1733790593220,-978.64,0.00010958,2]
[344796129,1733790593254,-978.64,0.00010958,2]
[344796130,1733790593285,-978.64,0.00010958,2]
[344796131,1733790593316,-978.64,0.00010958,2]
[344796132,1733790593351,-978.64,0.00010958,2]
[344796133,1733790593384,-978.64,0.00010958,2]
[344796134,1733790593418,-978.64,0.00010958,2]
[344796135,1733790593451,-978.64,0.00010958,2]
[344796136,1733790593485,-978.64,0.00010958,2]
[344796137,1733790593521,-978.64,0.00010958,2]
[344796138,1733790593558,-978.64,0.00010958,2]
[344796139,1733790593592,-978.64,0.00010958,2]
[344796140,1733790593628,-978.64,0.00010958,2]
[344796141,1733790593674,-978.64,0.00010958,2]
[344796142,1733790593713,-978.64,0.00010958,2]
[344796143,1733790593750,-978.64,0.00010958,2]
[344796144,1733790593786,-978.64,0.00010958,2]
[344796145,1733790593821,-978.64,0.00010958,2]
[344796146,1733790593858,-978.64,0.00010958,2]
[344796147,1733790593900,-978.64,0.00010958,2]
[344796148,1733790593938,-978.72,0.00010958,2]
[344796149,1733790593976,-861.53,0.00010958,2]
[344796150,1733790594015,-861.53,0.00010958,2]
[344796151,1733790594053,-500.0,0.00010958,2]
[344796152,1733790594090,-500.0,0.00010958,2]
[344796153,1733790594127,-300.0,0.00010988,2]
[344796154,1733790594167,-300.0,0.00010988,2]
[344796155,1733790594204,-300.0,0.00010988,2]
[344796156,1733790594242,-300.0,0.00010988,2]
[344796157,1733790594278,-300.0,0.00010988,2]
[344796158,1733790594313,-300.0,0.00010988,2]
[344796159,1733790594349,-300.0,0.00010988,2]
[344796160,1733790594388,-300.0,0.00010988,2]
[344796161,1733790594429,-300.0,0.00010988,2]
[344796162,1733790594465,-300.0,0.00010988,2]
[344796163,1733790594502,-493.0,0.00010989,2]
[344796164,1733790594540,-6506047.73667804,0.000111,2]
[344796168,1733790631718,-150.0,9.346e-05,2]
[344796169,1733790631727,-373.0307022,0.00010958,2]
[344796170,1733790631886,-126.9692978,0.00010958,2]
[344796171,1733790631896,-500.0,0.00010958,2]
[344796172,1733790631905,-500.0,0.00010958,2]
[344796173,1733790631915,-500.0,0.00010958,2]
[344796174,1733790631928,-861.53,0.00010958,2]
[344796175,1733790631937,-97.31896609,0.00010958,2]
[344796176,1733790631949,-402.68103391,0.00010958,2]
[344796177,1733790631958,-144.28571109,0.00010958,2]
[344796178,1733790631969,-717.24428891,0.00010958,2]
[344796179,1733790631979,-500.0,0.00010958,2]
[344796180,1733790631988,-20.51722099,0.00010958,2]
[344796181,1733790631999,-841.01277901,0.00010958,2]
[344796182,1733790632009,-500.0,0.00010958,2]
[344796183,1733790632018,-861.53,0.00010958,2]
[344796184,1733790632028,-486.48190641,0.00010958,2]
[344796185,1733790632060,-13.51809359,0.00010958,2]
[344796186,1733790632069,-861.53,0.00010958,2]
[344796187,1733790632080,-500.0,0.00010958,2]
[344796188,1733790632090,-463.27078722,0.00010958,2]
[344796212,1733790637637,-398.25921278,0.00010958,2]
[344796213,1733790637647,-376.41,0.00010958,2]
[344796214,1733790637657,-861.53,0.00010958,2]
[344796215,1733790637667,-612.01417647,0.00010958,2]
[344796216,1733790637698,-249.51582353,0.00010958,2]
[344796217,1733790637707,-861.53,0.00010958,2]
[344796218,1733790637717,-861.53,0.00010958,2]
[344796219,1733790637726,-861.53,0.00010958,2]
[344796220,1733790637736,-468.78029371,0.00010958,2]
[344796221,1733790637758,-392.74970629,0.00010958,2]
[344796222,1733790637768,-184.41706288,0.00010958,2]
[344796223,1733790637779,-315.58293712,0.00010958,2]
[344796224,1733790637789,-780.06706288,0.00010958,2]
[344796225,1733790637818,-81.46293712,0.00010958,2]
[344796226,1733790637828,-500.0,0.00010958,2]
[344796227,1733790637838,-861.53,0.00010958,2]
[344796228,1733790637848,-500.0,0.00010958,2]
[344796229,1733790637858,-861.53,0.00010958,2]
[344796230,1733790637868,-500.0,0.00010958,2]
[344796231,1733790637878,-861.53,0.00010958,2]
[344796232,1733790637888,-500.0,0.00010958,2]
[344796233,1733790637898,-861.53,0.00010958,2]
[344796234,1733790637908,-500.0,0.00010958,2]
[344796235,1733790637918,-500.0,0.00010958,2]
[344796236,1733790637934,-861.53,0.00010958,2]
[344796237,1733790637944,-530.64,0.00010958,2]
[344796238,1733790637954,-861.53,0.00010958,2]
[344796239,1733790637964,-861.53,0.00010958,2]
[344796240,1733790637974,-861.53,0.00010958,2]
[344796241,1733790637984,-861.60636275,0.00010958,2]
[344796242,1733790637994,-748.36,0.00010958,2]
[344796243,1733790638003,-748.36,0.00010958,2]
[344796244,1733790638013,-748.36,0.00010958,2]
[344796245,1733790638022,-748.36,0.00010958,2]
[344796246,1733790638032,-748.36,0.00010958,2]
[344796247,1733790638042,-748.36,0.00010958,2]
[344796248,1733790638051,-748.36,0.00010958,2]
[344796249,1733790638061,-748.36,0.00010958,2]
[344796250,1733790638070,-748.36,0.00010958,2]
[344796251,1733790638079,-748.36,0.00010958,2]
[344796252,1733790638088,-748.36,0.00010958,2]
[344796253,1733790638098,-748.36,0.00010958,2]
[344796255,1733790638107,-748.36,0.00010958,2]
[344796258,1733790638117,-748.36,0.00010958,2]
[344796261,1733790638126,-748.36,0.00010958,2]
[344796264,1733790638135,-748.36,0.00010958,2]
[344796267,1733790638144,-748.36,0.00010958,2]
[344796270,1733790638156,-748.36,0.00010958,2]
[344796273,1733790638165,-748.36,0.00010958,2]
[344796276,1733790638178,-662.56,0.00010958,2]
[344796279,1733790638187,-662.56,0.00010958,2]
[344796282,1733790638196,-748.36,0.00010958,2]
[344796285,1733790638206,-662.56,0.00010958,2]
[344796288,1733790638215,-748.36,0.00010958,2]
[344796290,1733790638224,-662.56,0.00010958,2]